fUST/lending_fUST_20250302
["ID","MTS","AMOUNT","RATE_DAILY","PERIOD"]
[355008629,1740864660001,-232.749812,0.00025205,7]
[355008630,1740864660012,-151.0,0.00025205,7]
[355008631,1740864660025,-233.889723,0.00025205,7]
[355008632,1740864660034,-731.19,0.00025205,2]
[355008633,1740864660044,-151.0,0.00025205,7]
[355008634,1740864660054,-151.0,0.00025205,7]
[355008635,1740864660064,-151.0,0.00025205,7]
[355008636,1740864660074,-684.17,0.00025205,2]
[355008637,1740864660084,-500.0,0.00025205,2]
[355008638,1740864660094,-500.0,0.00025205,2]
[355008639,1740864660103,-500.0,0.00025205,2]
[355008640,1740864660113,-500.0,0.00025205,2]
[355008641,1740864660122,-500.0,0.00025205,2]
[355008642,1740864660131,-500.0,0.00025205,2]
[355008643,1740864660141,-500.0,0.00025205,2]
[355008644,1740864660155,-523.7105927,0.00025205,2]
[355008645,1740864660165,-1511.48,0.00025205,2]
[355008646,1740864660174,-500.0,0.00025205,2]
[355008647,1740864660185,-500.0,0.00025205,2]
[355008648,1740864660195,-500.0,0.00025205,2]
[355008649,1740864660206,-500.0,0.00025205,2]
[355008650,1740864660216,-500.0,0.00025205,2]
[355008651,1740864660230,-668.48,0.00025205,2]
[355008652,1740864660241,-500.0,0.00025205,2]
[355008653,1740864660251,-624.05,0.00025205,2]
[355008654,1740864660260,-500.0,0.00025205,2]
[355008655,1740864660270,-500.0,0.00025205,2]
[355008656,1740864660279,-500.0,0.00025205,2]
[355008657,1740864660290,-500.0,0.00025205,2]
[355008658,1740864660299,-500.0,0.00025205,2]
[355008659,1740864660308,-302.51797588,0.00025205,2]
[355008660,1740864660318,-500.0,0.00025205,2]
[355008661,1740864660328,-500.0,0.00025205,2]
[355008662,1740864660338,-500.0,0.00025205,2]
[355008663,1740864660348,-607.4,0.00025205,2]
[355008664,1740864660358,-500.0,0.00025205,2]
[355008665,1740864660367,-267.226842,0.00025205,7]
[355008666,1740864660377,-267.226842,0.00025205,7]
[355008667,1740864660386,-2478.05,0.00025205,2]
[355008668,1740864660396,-1330.13,0.00025205,2]
[355008669,1740864660405,-267.226842,0.00025205,7]
[355008670,1740864660415,-500.0,0.00025205,2]
[355008671,1740864660424,-934.01,0.00025205,2]
[355008672,1740864660434,-267.226842,0.00025205,7]
[355008673,1740864660444,-500.0,0.00025205,2]
[355008674,1740864660454,-500.0,0.00025205,2]
[355008675,1740864660463,-500.0,0.00025205,2]
[355008676,1740864660472,-531.97,0.00025205,2]
[355008677,1740864660482,-1599.26,0.00025205,2]
[355008678,1740864660491,-500.0,0.00025205,2]
[355008679,1740864660500,-151.0,0.00025205,7]
[355008680,1740864660510,-151.0,0.00025205,7]
[355008681,1740864660520,-1571.32,0.00025205,2]
[355008682,1740864660529,-151.0,0.00025205,7]
[355008683,1740864660539,-151.0,0.00025205,7]
[355008684,1740864660549,-500.0,0.00025205,2]
[355008685,1740864660558,-232.336558,0.00025205,7]
[355008686,1740864660567,-1599.16,0.00025205,2]
[355008687,1740864660578,-232.336558,0.00025205,7]
[355008688,1740864660587,-232.336558,0.00025205,7]
[355008689,1740864660598,-500.0,0.00025205,2]
[355008690,1740864660608,-232.336558,0.00025205,7]
[355008691,1740864660618,-500.0,0.00025205,2]
[355008692,1740864660627,-500.0,0.00025205,2]
[355008693,1740864660637,-500.0,0.00025205,2]
[355008694,1740864660647,-159.55922748,0.00025205,2]
[355008695,1740864660656,-706.17,0.00025205,2]
[355008696,1740864660666,-736.26,0.00025205,2]
[355008697,1740864660676,-934.19,0.00025205,2]
[355008698,1740864660686,-500.0,0.00025205,2]
[355008699,1740864660695,-500.0,0.00025205,2]
[355008700,1740864660704,-566.41,0.00025205,2]
[355008701,1740864660714,-500.0,0.00025205,2]
[355008702,1740864660724,-500.0,0.00025205,2]
[355008703,1740864660735,-684.14,0.00025205,2]
[355008704,1740864660746,-505.8333105,0.00025205,2]
[355008705,1740864660756,-500.0,0.00025205,2]
[355008706,1740864660766,-817.76,0.00025205,2]
[355008707,1740864660784,-500.0,0.00025205,2]
[355008708,1740864660794,-500.0,0.00025205,2]
[355008709,1740864660804,-500.0,0.00025205,2]
[355008710,1740864660814,-500.0,0.00025205,2]
[355008711,1740864660824,-296.06224926,0.00025205,2]
[355008712,1740864660833,-1047.27,0.00025205,2]
[355008713,1740864660843,-500.0,0.00025205,2]
[355008714,1740864660853,-2177.75,0.00025205,2]
[355008715,1740864660862,-500.0,0.00025205,2]
[355008716,1740864660872,-500.0,0.00025205,2]
[355008717,1740864660882,-500.0,0.00025205,2]
[355008718,1740864660891,-500.0,0.00025205,2]
[355008719,1740864660902,-901.5,0.00025205,2]
[355008720,1740864660911,-500.0,0.00025205,2]
[355008721,1740864660921,-1088.91,0.00025205,2]
[355008722,1740864660930,-753.07,0.00025205,2]
[355008723,1740864660940,-500.0,0.00025205,2]
[355008724,1740864660951,-500.0,0.00025205,2]
[355008725,1740864660961,-520.07,0.00025205,2]
[355008726,1740864660972,-951.77,0.00025205,2]
[355008727,1740864660982,-780.3,0.00025205,2]
[355008728,1740864660992,-500.0,0.00025205,2]
[355008729,1740864661002,-512.63,0.00025205,2]
[355008730,1740864661012,-500.0,0.00025205,2]
[355008731,1740864661021,-500.0,0.00025205,2]
[355008732,1740864661031,-713.49,0.00025205,2]
[355008733,1740864661041,-1540.75,0.00025205,2]
[355008734,1740864661052,-501.16755942,0.00025205,2]
[355008735,1740864661061,-500.0,0.00025205,2]
[355008736,1740864661071,-500.0,0.00025205,2]
[355008737,1740864661080,-500.0,0.00025205,2]
[355008738,1740864661090,-500.0,0.00025205,2]
[355008739,1740864661099,-500.0,0.00025205,2]
[355008740,1740864661109,-500.0,0.00025205,2]
[355008741,1740864661119,-500.0,0.00025205,2]
[355008742,1740864661129,-500.0,0.00025205,2]
[355008743,1740864661139,-775.16,0.00025205,2]
[355008744,1740864661152,-643.17,0.00025205,2]
[355008745,1740864661162,-500.0,0.00025205,2]
[355008746,1740864661172,-500.0,0.00025205,2]
[355008747,1740864661182,-587.94,0.00025205,2]
[355008748,1740864661192,-508.06437309,0.00025205,2]
[355008749,1740864661202,-500.0,0.00025205,2]
[355008750,1740864661211,-500.0,0.00025205,2]
[355008751,1740864661222,-933.88,0.00025205,2]
[355008752,1740864661232,-500.0,0.00025205,2]
[355008753,1740864661242,-865.43,0.00025205,2]
[355008754,1740864661251,-283.83787859,0.00025205,2]
[355008755,1740864661261,-500.0,0.00025205,2]
[355008756,1740864661271,-754.88,0.00025205,2]
[355008757,1740864661281,-1057.864983,0.00025205,7]
[355008758,1740864661292,-1057.864983,0.00025205,7]
[355008759,1740864661302,-1057.864983,0.00025205,7]
[355008760,1740864661314,-1127.71,0.00025205,2]
[355008761,1740864661325,-1082.64,0.00025205,2]
[355008762,1740864661334,-500.0,0.00025205,2]
[355008763,1740864661344,-1057.864983,0.00025205,7]
[355008764,1740864661355,-250.654782,0.00025205,7]
[355008765,1740864661365,-1057.864983,0.00025205,7]
[355008766,1740864661374,-1057.864983,0.00025205,7]
[355008767,1740864661384,-250.654782,0.00025205,7]
[355008768,1740864661394,-250.654782,0.00025205,7]
[355008769,1740864661403,-500.0,0.00025205,2]
[355008770,1740864661412,-250.654782,0.00025205,7]
[355008771,1740864661423,-250.654782,0.00025205,7]
[355008772,1740864661432,-250.654782,0.00025205,7]
[355008773,1740864661442,-500.0,0.00025205,2]
[355008774,1740864661451,-1017.15,0.00025205,2]
[355008775,1740864661461,-1484.0,0.00025205,2]
[355008776,1740864661471,-1327.87,0.00025205,2]
[355008777,1740864661482,-194.435715,0.00025205,7]
[355008778,1740864661492,-194.435715,0.00025205,7]
[355008779,1740864661502,-500.0,0.00025205,2]
[355008780,1740864661512,-927.59,0.00025205,2]
[355008781,1740864661523,-194.435715,0.00025205,7]
[355008782,1740864661533,-194.435715,0.00025205,7]
[355008783,1740864661544,-500.0,0.00025205,2]
[355008784,1740864661554,-407.559714,0.00025205,7]
[355008785,1740864661564,-407.559714,0.00025205,7]
[355008786,1740864661574,-407.559714,0.00025205,7]
[355008787,1740864661583,-500.0,0.00025205,2]
[355008788,1740864661594,-500.0,0.00025205,2]
[355008789,1740864661604,-1345.24,0.00025205,2]
[355008790,1740864661615,-407.559714,0.00025205,7]
[355008791,1740864661624,-407.559714,0.00025205,7]
[355008792,1740864661634,-407.559714,0.00025205,7]
[355008793,1740864661644,-500.0,0.00025205,2]
[355008794,1740864661654,-1613.63,0.00025205,2]
[355008795,1740864661665,-500.0,0.00025205,2]
[355008796,1740864661675,-500.0,0.00025205,2]
[355008797,1740864661685,-500.0,0.00025205,2]
[355008798,1740864661695,-661.56,0.00025205,2]
[355008799,1740864661705,-500.0,0.00025205,2]
[355008800,1740864661716,-500.0,0.00025205,2]
[355008801,1740864661726,-165389.76,0.00025205,2]
[355008802,1740864661737,-500.0,0.00025205,2]
[355008803,1740864661747,-500.0,0.00025205,2]
[355008804,1740864661758,-559.72,0.00025205,2]
[355008805,1740864661768,-151.0,0.00025205,7]
[355008806,1740864661778,-151.0,0.00025205,7]
[355008807,1740864661788,-151.0,0.00025205,7]
[355008808,1740864661798,-500.0,0.00025205,2]
[355008809,1740864661808,-3414.87,0.00025205,2]
[355008810,1740864661819,-500.0,0.00025205,2]
[355008811,1740864661830,-1870.31,0.00025205,2]
[355008812,1740864661840,-500.0,0.00025205,2]
[355008813,1740864661850,-500.0,0.00025205,2]
[355008814,1740864661860,-747.64,0.00025205,2]
[355008815,1740864661870,-376.988901,0.00025205,7]
[355008816,1740864661880,-3778.02,0.00025205,2]
[355008817,1740864661891,-376.988901,0.00025205,7]
[355008818,1740864661901,-376.988901,0.00025205,7]
[355008819,1740864661910,-1808.03,0.00025205,2]
[355008820,1740864661920,-500.0,0.00025205,2]
[355008821,1740864661931,-694.15,0.00025205,2]
[355008822,1740864661941,-500.0,0.00025205,2]
[355008823,1740864661951,-500.0,0.00025205,2]
[355008824,1740864661961,-500.0,0.00025205,2]
[355008825,1740864661971,-376.988901,0.00025205,7]
[355008826,1740864661985,-376.988901,0.00025205,7]
[355008827,1740864661995,-376.988901,0.00025205,7]
[355008828,1740864662005,-527.19,0.00025205,2]
[355008829,1740864662015,-4182.97,0.00025205,2]
[355008830,1740864662025,-500.0,0.00025205,2]
[355008831,1740864662035,-615.55,0.00025205,2]
[355008832,1740864662044,-500.0,0.00025205,2]
[355008833,1740864662054,-13466.73,0.00025205,2]
[355008834,1740864662064,-284.623502,0.00025205,7]
[355008835,1740864662074,-284.623502,0.00025205,7]
[355008836,1740864662084,-993.12,0.00025205,2]
[355008837,1740864662094,-500.0,0.00025205,2]
[355008838,1740864662105,-1737.79,0.00025205,2]
[355008839,1740864662115,-284.623502,0.00025205,7]
[355008840,1740864662124,-1059.69,0.00025205,2]
[355008841,1740864662134,-500.0,0.00025205,2]
[355008842,1740864662146,-284.623502,0.00025205,7]
[355008843,1740864662158,-971.54,0.00025205,2]
[355008844,1740864662168,-1083.175398,0.00025205,7]
[355008845,1740864662179,-1083.175398,0.00025205,7]
[355008846,1740864662392,-1083.175398,0.00025205,7]
[355008847,1740864662403,-965.04,0.00025205,2]
[355008848,1740864662412,-284.68877623,0.00025205,2]
[355008849,1740864662421,-1020.21,0.00025205,2]
[355008850,1740864662431,-500.0,0.00025205,2]
[355008851,1740864662440,-1083.175398,0.00025205,7]
[355008852,1740864662449,-1083.175398,0.00025205,7]
[355008853,1740864662458,-1083.175398,0.00025205,7]
[355008854,1740864662467,-642.72,0.00025205,2]
[355008855,1740864662477,-1442.57,0.00025205,2]
[355008856,1740864662487,-500.0,0.00025205,2]
[355008857,1740864662496,-210.05031,0.00025205,7]
[355008858,1740864662506,-1093.65,0.00025205,2]
[355008859,1740864662517,-210.05031,0.00025205,7]
[355008860,1740864662527,-210.05031,0.00025205,7]
[355008861,1740864662536,-500.0,0.00025205,2]
[355008862,1740864662546,-1182.47,0.00025205,2]
[355008863,1740864662555,-500.0,0.00025205,2]
[355008864,1740864662565,-210.05031,0.00025205,7]
[355008865,1740864662575,-500.0,0.00025205,2]
[355008866,1740864662584,-210.05031,0.00025205,7]
[355008867,1740864662594,-719.6,0.00025205,2]
[355008868,1740864662604,-210.05031,0.00025205,7]
[355008869,1740864662614,-392.46962678,0.00025205,2]
[355008870,1740864662623,-500.0,0.00025205,2]
[355008871,1740864662633,-500.0,0.00025205,2]
[355008872,1740864662643,-1307.71,0.00025205,2]
[355008873,1740864662652,-733.47387,0.00025205,7]
[355008874,1740864662662,-733.47387,0.00025205,7]
[355008875,1740864662672,-500.0,0.00025205,2]
[355008876,1740864662681,-500.0,0.00025205,2]
[355008877,1740864662691,-733.47387,0.00025205,7]
[355008878,1740864662700,-500.0,0.00025205,2]
[355008879,1740864662710,-733.47387,0.00025205,7]
[355008880,1740864662719,-720.18,0.00025205,2]
[355008881,1740864662730,-789.48,0.00025205,2]
[355008882,1740864662740,-500.0,0.00025205,2]
[355008883,1740864662749,-500.0,0.00025205,2]
[355008884,1740864662759,-1735.39,0.00025205,2]
[355008885,1740864662769,-500.0,0.00025205,2]
[355008886,1740864662778,-500.0,0.00025205,2]
[355008887,1740864662787,-904.05,0.00025205,2]
[355008888,1740864662797,-500.0,0.00025205,2]
[355008889,1740864662807,-500.0,0.00025205,2]
[355008890,1740864662816,-500.0,0.00025205,2]
[355008891,1740864662827,-500.0,0.00025205,2]
[355008892,1740864662836,-500.0,0.00025205,2]
[355008893,1740864662845,-14273.26,0.00025205,2]
[355008894,1740864662857,-765.38,0.00025205,2]
[355008895,1740864662867,-500.0,0.00025205,2]
[355008896,1740864662876,-1027.25,0.00025205,2]
[355008897,1740864662886,-787.62,0.00025205,2]
[355008898,1740864662895,-500.0,0.00025205,2]
[355008899,1740864662906,-500.0,0.00025205,2]
[355008900,1740864662916,-500.0,0.00025205,2]
[355008901,1740864662925,-500.0,0.00025205,2]
[355008902,1740864662935,-500.0,0.00025205,2]
[355008903,1740864662946,-6817.7,0.00025205,2]
[355008904,1740864662956,-500.0,0.00025205,2]
[355008905,1740864662966,-6214.88,0.00025205,2]
[355008906,1740864662976,-500.0,0.00025205,2]
[355008907,1740864662988,-500.0,0.00025205,2]
[355008908,1740864662998,-500.0,0.00025205,2]
[355008909,1740864663008,-500.0,0.00025205,2]
[355008910,1740864663018,-1215.69,0.00025205,2]
[355008911,1740864663029,-500.0,0.00025205,2]
[355008912,1740864663040,-500.0,0.00025205,2]
[355008913,1740864663051,-1082.98,0.00025205,2]
[355008914,1740864663062,-9894.4,0.00025205,2]
[355008915,1740864663073,-3066.62,0.00025205,2]
[355008916,1740864663084,-724.36,0.00025205,2]
[355008917,1740864663095,-27412.46,0.00025205,2]
[355008918,1740864663107,-500.0,0.00025205,2]
[355008919,1740864663118,-1011.0,0.00025205,2]
[355008920,1740864663130,-500.0,0.00025205,2]
[355008921,1740864663145,-1584.504549,0.00025205,7]
[355008922,1740864663160,-1584.504549,0.00025205,7]
[355008923,1740864663171,-151.0,0.00025205,7]
[355008924,1740864663182,-3045.31,0.00025205,2]
[355008925,1740864663196,-227.0,0.00025205,7]
[355008926,1740864663208,-1327.9,0.00025205,2]
[355008927,1740864663221,-1617.168073,0.00025205,7]
[355008928,1740864663245,-1617.168073,0.00025205,7]
[355008929,1740864663259,-1584.504549,0.00025205,7]
[355008930,1740864663273,-1584.504549,0.00025205,7]
[355008931,1740864663285,-1717.54,0.00025205,2]
[355008932,1740864663299,-500.0,0.00025205,2]
[355008933,1740864663312,-1617.168073,0.00025205,7]
[355008934,1740864663324,-1617.168073,0.00025205,7]
[355008935,1740864663548,-719.27,0.00025205,2]
[355008936,1740864663560,-681.04,0.00025205,2]
[355008937,1740864663572,-500.0,0.00025205,2]
[355008938,1740864663583,-500.0,0.00025205,2]
[355008939,1740864663595,-151.0,0.00025205,7]
[355008940,1740864663606,-1954.69,0.00025205,2]
[355008941,1740864663617,-500.0,0.00025205,2]
[355008942,1740864663629,-151.0,0.00025205,7]
[355008943,1740864663639,-500.0,0.00025205,2]
[355008944,1740864663650,-2953.42,0.00025205,2]
[355008945,1740864663661,-500.0,0.00025205,2]
[355008946,1740864663672,-443.268657,0.00025205,7]
[355008947,1740864663683,-443.268657,0.00025205,7]
[355008948,1740864663693,-1284.82,0.00025205,2]
[355008949,1740864663704,-443.268657,0.00025205,7]
[355008950,1740864663715,-443.268657,0.00025205,7]
[355008951,1740864663724,-500.0,0.00025205,2]
[355008952,1740864663736,-1000.0,0.00025205,5]
[355008953,1740864663746,-500.0,0.00025205,2]
[355008954,1740864663756,-1492.77,0.00025205,2]
[355008955,1740864663766,-500.0,0.00025205,2]
[355008956,1740864663776,-500.0,0.00025205,2]
[355008957,1740864663786,-500.0,0.00025205,2]
[355008958,1740864663796,-2924.88,0.00025205,2]
[355008959,1740864663805,-877.806065,0.00025205,7]
[355008960,1740864663815,-877.806065,0.00025205,7]
[355008961,1740864663825,-500.0,0.00025205,2]
[355008962,1740864663834,-877.806065,0.00025205,7]
[355008963,1740864663845,-877.806065,0.00025205,7]
[355008964,1740864663855,-500.0,0.00025205,2]
[355008965,1740864663865,-537.64,0.00025205,2]
[355008966,1740864663874,-500.0,0.00025205,2]
[355008967,1740864663885,-5643.94,0.00025205,2]
[355008968,1740864663895,-525.99902752,0.00025205,2]
[355008969,1740864663905,-500.0,0.00025205,2]
[355008970,1740864663915,-537.93,0.00025205,2]
[355008971,1740864663926,-500.0,0.00025205,2]
[355008972,1740864663936,-183.823705,0.00025205,7]
[355008973,1740864663946,-183.823705,0.00025205,7]
[355008974,1740864663956,-9295.32,0.00025205,2]
[355008975,1740864663966,-673.23,0.00025205,2]
[355008976,1740864663976,-500.0,0.00025205,2]
[355008977,1740864663987,-183.823705,0.00025205,7]
[355008978,1740864663997,-500.0,0.00025205,2]
[355008979,1740864664007,-183.823705,0.00025205,7]
[355008980,1740864664017,-513.01,0.00025205,2]
[355008981,1740864664027,-500.0,0.00025205,2]
[355008982,1740864664037,-500.0,0.00025205,2]
[355008983,1740864664048,-980.77,0.00025205,2]
[355008984,1740864664058,-500.0,0.00025205,2]
[355008985,1740864664068,-397.375946,0.00025205,7]
[355008986,1740864664079,-397.375946,0.00025205,7]
[355008987,1740864664089,-1224.87,0.00025205,2]
[355008988,1740864664100,-1850.81,0.00025205,2]
[355008989,1740864664111,-966.84,0.00025205,2]
[355008990,1740864664122,-397.375946,0.00025205,7]
[355008991,1740864664133,-397.375946,0.00025205,7]
[355008992,1740864664145,-500.0,0.00025205,2]
[355008993,1740864664158,-860.46,0.00025205,2]
[355008994,1740864664168,-500.0,0.00025205,2]
[355008995,1740864664180,-2952.27,0.00025205,2]
[355008996,1740864664191,-500.0,0.00025205,2]
[355008997,1740864664203,-728.04,0.00025205,2]
[355008998,1740864664215,-500.0,0.00025205,2]
[355008999,1740864664226,-500.0,0.00025205,2]
[355009000,1740864664245,-500.0,0.00025205,2]
[355009001,1740864664256,-500.0,0.00025205,2]
[355009002,1740864664267,-8607.52,0.00025205,2]
[355009003,1740864664278,-500.0,0.00025205,2]
[355009004,1740864664288,-500.0,0.00025205,2]
[355009005,1740864664299,-525.53051433,0.00025205,2]
[355009006,1740864664309,-1417.78,0.00025205,2]
[355009007,1740864664320,-627.24,0.00025205,2]
[355009008,1740864664331,-1971.43,0.00025205,2]
[355009009,1740864664342,-2225.73,0.00025205,2]
[355009010,1740864664355,-500.0,0.00025205,2]
[355009011,1740864664366,-500.0,0.00025205,2]
[355009012,1740864664377,-1679.93,0.00025205,2]
[355009013,1740864664389,-500.0,0.00025205,2]
[355009014,1740864664400,-500.0,0.00025205,2]
[355009015,1740864664411,-1116.8,0.00025205,2]
[355009016,1740864664422,-500.0,0.00025205,2]
[355009017,1740864664432,-1770.1,0.00025205,2]
[355009018,1740864664443,-543.07,0.00025205,2]
[355009019,1740864664453,-500.0,0.00025205,2]
[355009020,1740864664464,-500.0,0.00025205,2]
[355009021,1740864664474,-500.0,0.00025205,2]
[355009022,1740864664487,-388.76830001,0.00025205,2]
[355009023,1740864664498,-500.0,0.00025205,2]
[355009024,1740864664508,-1966.27,0.00025205,2]
[355009025,1740864664519,-500.0,0.00025205,2]
[355009026,1740864664529,-220.38105167,0.00025233,2]
[355009027,1740864664540,-201.451934,0.00025248,2]
[355009028,1740864664550,-220.38105167,0.00025342,2]
[355009029,1740864664560,-525.87,0.00025345,9]
[355009030,1740864664570,-1685.13712762,0.000254,4]
[355009031,1740864664581,-1685.13712745,0.000254,4]
[355009032,1740864664591,-1685.13712745,0.000254,4]
[355009033,1740864664601,-200.0,0.0002546,16]
[355009034,1740864664611,-284.623502,0.0002546,7]
[355009035,1740864664621,-284.623502,0.0002546,7]
[355009036,1740864664632,-201.521079,0.00025468,2]
[355009037,1740864664642,-500.0,0.00025473,2]
[355009038,1740864664652,-151.0,0.00025478,7]
[355009039,1740864664662,-300.385476,0.00025478,7]
[355009040,1740864664672,-232.336558,0.00025478,7]
[355009041,1740864664682,-232.336558,0.00025478,7]
[355009042,1740864664692,-164.37568423,0.00025478,2]
[355009043,1740864664702,-151.0,0.00025479,7]
[355009044,1740864664713,-151.0,0.00025479,7]
[355009045,1740864664723,-151.0,0.00025479,7]
[355009046,1740864664735,-252.531296,0.00025479,7]
[355009047,1740864664746,-151.0,0.00025479,7]
[355009048,1740864664757,-171.968109,0.00025479,7]
[355009049,1740864664769,-171.968109,0.00025479,7]
[355009050,1740864664780,-171.968109,0.00025479,7]
[355009051,1740864664791,-171.968109,0.00025479,7]
[355009052,1740864664803,-151.0,0.00025479,7]
[355009053,1740864664815,-151.0,0.00025479,7]
[355009054,1740864664826,-151.0,0.00025479,7]
[355009055,1740864664837,-151.0,0.00025479,7]
[355009056,1740864664849,-151.0,0.00025479,7]
[355009057,1740864664860,-151.0,0.00025479,7]
[355009058,1740864665088,-151.0,0.00025479,7]
[355009059,1740864665101,-151.0,0.00025479,7]
[355009060,1740864665114,-172.881782,0.00025479,7]
[355009061,1740864665127,-492.40166588,0.00025479,2]
[355009062,1740864665139,-513.18,0.00025479,2]
[355009063,1740864665157,-500.0,0.00025479,2]
[355009064,1740864665170,-827.9,0.00025479,2]
[355009065,1740864665182,-500.0,0.00025479,2]
[355009066,1740864665198,-819.88,0.00025479,2]
[355009067,1740864665210,-735.22,0.00025479,2]
[355009068,1740864665223,-500.0,0.00025479,2]
[355009069,1740864665240,-500.0,0.00025479,2]
[355009070,1740864665253,-500.0,0.00025479,2]
[355009071,1740864665266,-641.01,0.00025479,2]
[355009072,1740864665282,-1030.77,0.00025479,2]
[355009073,1740864665294,-500.0,0.00025479,2]
[355009074,1740864665306,-244.000706,0.00025479,7]
[355009075,1740864665317,-244.000706,0.00025479,7]
[355009076,1740864665329,-500.0,0.00025479,2]
[355009077,1740864665341,-244.000706,0.00025479,7]
[355009078,1740864665353,-244.000706,0.00025479,7]
[355009079,1740864665365,-500.0,0.00025479,2]
[355009080,1740864665377,-500.0,0.00025479,2]
[355009081,1740864665390,-624.32,0.00025479,2]
[355009082,1740864665403,-500.0,0.00025479,2]
[355009083,1740864665415,-834.01,0.00025479,2]
[355009084,1740864665497,-500.0,0.00025479,2]
[355009085,1740864665508,-500.0,0.00025479,2]
[355009086,1740864665520,-151.0,0.00025479,7]
[355009087,1740864665531,-151.0,0.00025479,7]
[355009088,1740864665542,-669.87,0.00025479,2]
[355009089,1740864665554,-500.0,0.00025479,2]
[355009090,1740864665566,-380.713519,0.00025479,7]
[355009091,1740864665577,-380.713519,0.00025479,7]
[355009092,1740864665591,-380.713519,0.00025479,7]
[355009093,1740864665603,-380.713519,0.00025479,7]
[355009094,1740864665614,-380.713519,0.00025479,7]
[355009095,1740864665625,-380.713519,0.00025479,7]
[355009096,1740864665637,-1865.669019,0.00025479,5]
[355009097,1740864665649,-1865.669019,0.00025479,5]
[355009098,1740864665660,-1865.669019,0.00025479,5]
[355009099,1740864665672,-1865.669019,0.00025479,5]
[355009100,1740864665684,-500.0,0.00025479,2]
[355009101,1740864665695,-500.0,0.00025479,2]
[355009102,1740864665707,-500.0,0.00025479,2]
[355009103,1740864665718,-500.0,0.00025479,2]
[355009104,1740864665728,-500.0,0.00025479,2]
[355009105,1740864665743,-588.34,0.00025479,2]
[355009106,1740864665754,-1015.99,0.00025479,2]
[355009107,1740864665765,-271.35559,0.00025479,7]
[355009108,1740864665776,-271.355592,0.00025479,7]
[355009109,1740864665787,-500.0,0.00025479,2]
[355009110,1740864665800,-524.95,0.00025479,2]
[355009111,1740864665811,-561.07552,0.00025479,7]
[355009112,1740864665822,-561.075512,0.00025479,7]
[355009113,1740864665833,-194.970556,0.00025479,7]
[355009114,1740864665844,-194.97056,0.00025479,7]
[355009115,1740864665854,-738.67,0.00025479,2]
[355009116,1740864665864,-500.0,0.00025479,2]
[355009117,1740864665875,-500.0,0.00025479,2]
[355009118,1740864665886,-500.0,0.00025479,2]
[355009119,1740864665898,-500.0,0.00025479,2]
[355009120,1740864665909,-581.72,0.00025479,2]
[355009121,1740864665920,-608.56695377,0.00025479,2]
[355009122,1740864665931,-500.0,0.00025479,2]
[355009123,1740864665941,-500.0,0.00025479,2]
[355009124,1740864665952,-1376.12,0.00025479,2]
[355009125,1740864665963,-1046.36,0.00025479,2]
[355009126,1740864665972,-500.0,0.00025479,2]
[355009127,1740864665984,-270.31100438,0.00025479,2]
[355009128,1740864666007,-1565.61,0.00025479,2]